bitfinex/quotes_SOLUSD_20250721
["timestamp","ask_amount","ask_price","bid_price","bid_amount"]
[1753129510295,12.34851366,196.38,196.37,35.92]
[1753129510915,12.34851366,196.38,196.37,36.64]
[1753129511308,6.53634542,196.39,196.37,36.64]
[1753129511614,7.25634542,196.39,196.37,36.64]
[1753129511921,7.25634542,196.38,196.37,36.64]
[1753129512221,0.72,196.38,196.37,36.64]
[1753129512404,6.5647,196.46,196.37,36.64]
[1753129512717,7.25634542,196.43,196.38,0.50921682]
[1753129512904,7.25634542,196.43,196.39,36.64]
[1753129513609,0.72,196.42,196.39,36.64]
[1753129513806,6.53634542,196.43,196.39,41.73187865]
[1753129514212,7.25634542,196.43,196.39,41.73187865]
[1753129514393,6.53634542,196.46,196.4,7.69551038]
[1753129514696,6.53634542,196.43,196.41,36.64]
[1753129514904,6.53634542,196.44,196.42,36.64]
[1753129515124,6.53634542,196.44,196.43,36.64]
[1753129515502,7.25634542,196.44,196.43,36.64]
[1753129519621,0.72,196.44,196.43,36.64]
[1753129519824,6.53634542,196.45,196.43,36.64]
[1753129520035,0.06,196.46,196.43,36.64]
[1753129520724,0.78,196.46,196.43,36.64]
[1753129520931,6.59634542,196.46,196.43,36.64]
[1753129521107,0.72,196.45,196.43,36.64]
[1753129521309,0.06,196.46,196.43,42.23994873]
[1753129521529,0.06,196.46,196.43,42.88994873]
[1753129521831,0.06,196.46,196.45,31.09035377]
[1753129522325,7.31634542,196.46,196.43,36.64]
[1753129522528,7.25634542,196.45,196.43,36.64]
[1753129522829,0.72,196.44,196.41,31.09127984]
[1753129523004,6.59634542,196.46,196.42,36.62]
[1753129523522,6.59634542,196.46,196.42,37.27]
[1753129523817,7.31634542,196.46,196.42,36.62]
[1753129524021,0.72,196.45,196.42,36.62]
[1753129524235,6.53634542,196.45,196.42,36.62]
[1753129524403,7.25634542,196.45,196.42,36.62]
[1753129524918,0.06,196.46,196.42,41.71097163]
[1753129525124,6.59634542,196.46,196.42,41.71097163]
[1753129525427,7.31634542,196.46,196.42,41.71097163]
[1753129525815,7.25634542,196.45,196.42,41.71097163]
[1753129526015,7.25634542,196.45,196.42,36.62]
[1753129526238,7.25634542,196.45,196.42,41.71111116]
[1753129526610,6.59634542,196.46,196.42,41.71111116]
[1753129526826,6.59634542,196.46,196.42,42.36111116]
[1753129527216,7.31634542,196.46,196.42,41.71111116]
[1753129527539,7.25634542,196.45,196.42,41.71111116]
[1753129528221,0.72,196.45,196.42,41.71111116]
[1753129529334,0.72,196.45,196.42,36.62]
[1753129529526,0.72,196.44,196.42,36.62]
[1753129530042,0.72,196.44,196.42,41.71112839]
[1753129530733,7.25634542,196.43,196.38,5.09215024]
[1753129530933,7.25634542,196.43,196.39,36.6]
[1753129531237,7.25634542,196.43,196.39,41.69173527]
[1753129531628,7.25634542,196.42,196.39,41.69173527]
[1753129532137,7.25634542,196.42,196.39,36.6]
[1753129532440,0.72,196.41,196.39,36.6]
[1753129533047,7.25634542,196.41,196.39,36.6]
[1753129533247,0.72,196.41,196.39,36.6]
[1753129533651,0.72,196.41,196.39,41.69186781]
[1753129534351,6.53634542,196.42,196.39,41.69186781]
[1753129534550,0.06,196.46,196.4,0.65]
[1753129534742,6.59634542,196.46,196.41,36.6]
[1753129534938,0.06,196.46,196.41,36.6]
[1753129535142,7.31634542,196.46,196.41,37.25]
[1753129535340,6.53634542,196.45,196.41,42.3411863]
[1753129536133,0.72,196.44,196.41,36.6]
[1753129536339,6.53634542,196.45,196.41,41.69134777]
[1753129536543,7.25634542,196.45,196.41,41.69134777]
[1753129537156,6.53634542,196.45,196.41,41.69134777]
[1753129537652,0.06,196.46,196.42,0.65]
[1753129537851,0.06,196.46,196.43,36.6]
[1753129538563,7.30634542,196.46,196.43,36.6]
[1753129538767,6.53634542,196.45,196.43,36.6]
[1753129538940,7.24634542,196.45,196.43,36.6]
[1753129540972,0.06,196.46,196.44,36.58]
[1753129543870,0.77,196.46,196.44,36.58]
[1753129545662,0.06,196.46,196.44,36.58]
[1753129545874,0.71,196.45,196.44,36.58]
[1753129547063,7.24634542,196.45,196.44,36.58]
[1753129548176,6.59634542,196.46,196.44,36.58]
[1753129548684,7.30634542,196.46,196.44,36.58]
[1753129549053,6.59634542,196.46,196.44,36.58]
[1753129549781,0.71,196.45,196.44,36.58]
[1753129549973,0.71,196.45,196.4,5.09163235]
[1753129549974,7.24634542,196.45,196.4,5.09163235]
[1753129550176,6.53634542,196.41,196.37,0.03]
[1753129550386,6.53634542,196.38,196.37,0.03]
[1753129550583,6.53634542,196.38,196.37,36.59]
[1753129550883,7.24634542,196.38,196.37,36.59]
[1753129551065,12.33851366,196.38,196.37,0.03]
[1753129551379,0.71,196.4,196.37,36.59]
[1753129551580,6.53634542,196.4,196.37,42.33237037]
[1753129551783,6.53634542,196.4,196.37,41.68237037]
[1753129551964,7.24634542,196.4,196.37,41.68237037]
[1753129552162,7.24634542,196.4,196.38,36.56]
[1753129553083,6.53634542,196.4,196.38,36.56]
[1753129553289,7.24634542,196.4,196.38,36.56]
[1753129554471,7.24634542,196.39,196.37,0.03]
[1753129554665,6.53634542,196.38,196.37,0.03]
[1753129554866,7.24634542,196.38,196.37,36.59]
[1753129557383,6.53634542,196.38,196.37,36.59]
[1753129557889,7.24634542,196.38,196.37,36.59]
[1753129558276,12.33851366,196.38,196.37,0.03]
[1753129558470,12.33851366,196.38,196.37,36.59]
[1753129558893,12.33851366,196.38,196.37,0.03]
[1753129559100,25.06893427,196.38,196.34,36.56]
[1753129559398,6.53634542,196.35,196.34,36.56]
[1753129559581,6.53634542,196.35,196.33,0.03]
[1753129559582,8.88634542,196.35,196.33,0.03]
[1753129559783,7.24634542,196.34,196.33,0.03]
[1753129560773,12.33955108,196.34,196.33,0.03]
[1753129561382,19.11939084,196.33,196.19,5.29703801]
[1753129561580,6.53634542,196.22,196.19,0.2]
[1753129561886,6.53634542,196.2,196.19,0.2]
[1753129562079,7.24634542,196.2,196.19,36.76]
[1753129563101,6.53634542,196.2,196.19,36.76]
[1753129563493,7.24634542,196.2,196.19,36.76]
[1753129565413,12.34318537,196.2,196.19,36.76]
[1753129565898,18.87953079,196.2,196.19,0.2]
[1753129566201,18.87953079,196.2,196.17,0.03]
[1753129566510,18.87953079,196.2,196.13,0.03]
[1753129566511,1.5673,196.17,196.13,0.03]
[1753129566804,6.53634542,196.14,196.13,0.03]
[1753129567180,7.24634542,196.14,196.13,0.03]
[1753129567494,2.2773,196.17,196.13,0.03]
[1753129567693,6.53634542,196.14,196.13,0.03]
[1753129568185,0.72,196.19,196.13,0.03]
[1753129568393,6.53634542,196.15,196.13,0.03]
[1753129569700,0.72,196.22,196.14,7.23634542]
[1753129569903,6.53634542,196.21,196.15,32.53634542]
[1753129570103,6.53634542,196.21,196.16,37.26]
[1753129570311,6.53634542,196.23,196.17,7.23634542]
[1753129570488,6.53634542,196.21,196.17,0.7]
[1753129570688,6.53634542,196.18,196.16,36.56]
[1753129570895,0.72,196.2,196.16,36.56]
[1753129570896,7.25634542,196.17,196.16,36.56]
[1753129571291,11.19565758,196.17,196.16,36.56]
[1753129571499,11.19565758,196.17,196.13,0.03]
[1753129571690,10.47565758,196.14,196.13,0.03]
[1753129571892,10.47565758,196.14,196.13,36.59]
[1753129572904,11.19565758,196.14,196.13,36.59]
[1753129573408,11.19565758,196.14,196.13,0.03]
[1753129573582,11.19565758,196.14,196.13,36.59]
[1753129574191,0.72,196.18,196.13,36.59]
[1753129574388,10.47565758,196.15,196.13,41.68865905]
[1753129574583,10.47565758,196.14,196.13,36.59]
[1753129574891,11.19565758,196.14,196.13,36.59]
[1753129576002,11.19565758,196.14,196.13,0.03]
[1753129576209,11.19565758,196.14,196.13,36.59]
[1753129579116,10.47565758,196.14,196.13,36.59]
[1753129579803,11.19565758,196.14,196.13,36.59]
[1753129580396,11.19565758,196.14,196.13,0.03]
[1753129581406,10.47565758,196.14,196.13,36.59]
[1753129581712,11.19565758,196.14,196.13,36.59]
[1753129583217,16.29405668,196.14,196.13,36.59]
[1753129584708,16.29405668,196.14,196.13,0.03]
[1753129586104,93.65765428,196.17,196.13,0.03]
[1753129586310,10.47565758,196.14,196.13,0.03]
[1753129589006,16.29405668,196.14,196.13,0.03]
[1753129589508,0.72,196.14,196.13,0.03]
[1753129589703,10.47565758,196.14,196.13,0.03]
[1753129590327,10.47565758,196.15,196.13,0.03]
[1753129590528,10.47565758,196.15,196.13,0.73]
[1753129590722,10.47565758,196.16,196.13,0.73]
[1753129591104,0.06,196.17,196.13,0.73]
[1753129591309,6.54667106,196.15,196.13,0.73]
[1753129591504,6.54667106,196.15,196.13,0.03]
[1753129592418,6.54667106,196.14,196.13,0.03]
[1753129592827,7.26667106,196.14,196.13,0.03]
[1753129594615,12.36507016,196.14,196.13,0.03]
[1753129595924,25.11106791,196.14,196.1,0.19462641]
[1753129596139,6.54667106,196.11,196.1,0.19462641]
[1753129596753,7.26667106,196.11,196.1,0.19462641]
[1753129597532,12.36585009,196.11,196.1,0.19462641]
[1753129598441,0.68,196.15,196.1,36.73462641]
[1753129598720,6.54667106,196.13,196.1,36.73462641]
[1753129598937,6.54667106,196.13,196.1,37.39462641]
[1753129599338,6.54667106,196.12,196.1,36.73462641]
[1753129599525,6.54667106,196.11,196.1,36.73462641]
[1753129601144,7.22667106,196.11,196.1,36.73462641]
[1753129601323,12.32585009,196.11,196.1,36.73462641]
[1753129602256,7.22667106,196.11,196.1,36.73462641]
[1753129603656,12.32585009,196.11,196.1,36.73462641]
[1753129604037,7.22667106,196.11,196.1,36.73462641]
[1753129604237,12.32585009,196.11,196.1,36.73462641]
[1753129605050,12.32585009,196.11,196.1,0.19462641]
[1753129607633,11.64585009,196.11,196.1,0.19462641]
[1753129608032,12.32585009,196.11,196.1,0.19462641]
[1753129609851,35.65720512,196.11,196.1,0.19462641]
[1753129610166,29.87802609,196.1,196.06,0.03]
[1753129610365,6.54667106,196.07,196.06,0.03]
[1753129610646,48.16689036,196.07,196.02,0.03]
[1753129610860,6.54667106,196.04,196.02,0.03]
[1753129611228,5.1002193,196.07,196.02,0.03]
[1753129611229,5.7802193,196.07,196.02,0.03]
[1753129611453,7.22667106,196.04,196.02,0.03]
[1753129612528,12.32767085,196.04,196.02,0.03]
[1753129615953,5.78099979,196.04,196.02,0.03]
[1753129616138,11.64767085,196.04,196.02,0.03]
[1753129616530,12.32767085,196.04,196.02,0.03]
[1753129617156,29.11235482,196.04,196.02,0.03]
[1753129619258,7.22667106,196.03,196.02,0.03]
[1753129620273,5.1002193,196.07,196.02,0.03]
[1753129620565,6.54667106,196.04,196.02,0.69]
[1753129620760,6.54667106,196.03,196.02,0.03]
[1753129621652,6.54667106,196.04,196.02,0.69]
[1753129622153,5.09969911,196.09,196.02,0.69]
[1753129622154,6.54667106,196.06,196.03,0.66]
[1753129622349,6.54667106,196.06,196.04,0.66]
[1753129622551,6.54667106,196.05,196.02,0.03]
[1753129622750,6.54667106,196.03,196.02,0.03]
[1753129622952,7.22667106,196.03,196.02,0.03]
[1753129623150,23.33135503,196.03,196.02,0.03]
[1753129623350,7.22667106,196.03,196.02,0.03]
[1753129623654,11.64793107,196.03,196.02,0.03]
[1753129623861,12.32793107,196.03,196.02,0.03]
[1753129625762,6.54667106,196.03,196.02,0.69]
[1753129628058,6.54667106,196.11,196.05,26.0]
[1753129628264,6.54667106,196.1,196.07,26.0]
[1753129628438,6.54667106,196.11,196.08,0.66]
[1753129628761,6.54667106,196.1,196.09,0.66]
[1753129630565,6.54667106,196.12,196.09,0.66]
[1753129630772,11.66010242,196.15,196.1,0.66]
[1753129630773,6.56189886,196.15,196.1,0.66]
[1753129631072,6.54667106,196.14,196.11,0.66]
[1753129631645,6.54667106,196.15,196.12,0.66]
[1753129631857,6.60667106,196.17,196.13,0.66]
[1753129632172,0.06,196.17,196.14,63.14]
[1753129632371,0.06,196.17,196.15,0.66]
[1753129633075,0.06,196.17,196.16,5.09787928]
[1753129633453,0.06,196.17,196.16,12.30455034]
[1753129633654,0.06,196.17,196.16,12.81433826]
[1753129633885,0.06,196.17,196.16,5.75787928]
[1753129634068,0.06,196.17,196.16,12.30455034]
[1753129634656,0.06,196.17,196.16,5.75787928]
[1753129634866,0.06,196.17,196.16,12.30455034]
[1753129635062,0.06,196.17,196.16,5.75787928]
[1753129635357,0.06,196.17,196.16,33.52059739]
[1753129637490,0.06,196.21,196.2,26.0]
[1753129637707,0.06,196.21,196.2,62.98968399]
[1753129637898,0.06,196.21,196.2,90.37293019]
[1753129638780,0.06,196.21,196.2,95.46977014]
[1753129639296,0.06,196.21,196.2,31.75683995]
[1753129639474,0.06,196.21,196.2,95.46977014]
[1753129639890,1e-08,196.21,196.2,95.97945413]
[1753129642890,1e-08,196.21,196.2,59.00977014]
[1753129643201,1e-08,196.21,196.2,84.98152392]
[1753129643400,1e-08,196.21,196.2,78.66508617]
[1753129643572,1e-08,196.21,196.2,95.44977014]
[1753129645000,1e-08,196.21,196.2,68.19683995]
[1753129645207,11.18824623,196.21,196.16,0.66]
[1753129645403,10.46824622,196.19,196.17,36.44]
[1753129645700,11.18824622,196.19,196.17,36.44]
[1753129646001,1e-08,196.21,196.17,36.44]
[1753129646002,11.18824622,196.18,196.17,36.44]
[1753129646589,10.46824622,196.18,196.17,62.44]
[1753129647095,15.56560578,196.18,196.17,36.44]
[1753129647296,16.28560578,196.18,196.17,36.44]
[1753129649597,16.28560578,196.18,196.16,0.03]
[1753129649797,12.74186545,196.21,196.16,0.03]
[1753129649798,16.28586563,196.17,196.16,0.03]
[1753129655216,33.0705496,196.17,196.16,0.03]
[1753129655816,15.56690527,196.13,196.12,0.03]
[1753129656312,16.28690527,196.13,196.12,0.03]
[1753129656516,10.46824622,196.13,196.12,0.03]
[1753129659121,11.11824622,196.13,196.12,0.03]
[1753129659308,10.46824622,196.13,196.12,0.03]
[1753129659634,10.46824622,196.17,196.12,26.72]
[1753129659801,10.46824622,196.17,196.13,0.69]
[1753129660006,10.46824622,196.17,196.14,36.44]
[1753129660629,10.46824622,196.16,196.14,36.44]
[1753129661540,16.21614665,196.16,196.14,36.44]
[1753129661828,10.46824623,196.21,196.15,0.69]
[1753129662137,1e-08,196.21,196.17,26.0]
[1753129662306,10.46824622,196.19,196.06,0.51004794]
[1753129662511,0.65000001,196.21,196.16,26.0]
[1753129662713,10.46824622,196.19,196.17,36.44]
[1753129664017,10.46824622,196.2,196.17,36.44]
[1753129664724,10.46824622,196.19,196.17,36.44]
[1753129664931,10.46824622,196.2,196.17,36.44]
[1753129665132,10.46824622,196.19,196.17,36.44]
[1753129665935,5.74662009,196.21,196.17,36.44]
[1753129666118,10.46824622,196.19,196.17,36.44]
[1753129667536,5.09693828,196.2,196.17,36.44]
[1753129667744,10.46824622,196.19,196.16,26.0]
[1753129667945,5.09658247,196.21,196.17,36.42]
[1753129668328,10.46824623,196.21,196.18,0.69]
[1753129668542,10.46824623,196.21,196.19,0.69]
[1753129668758,1e-08,196.21,196.2,36.42]
[1753129669046,10.46824623,196.21,196.2,36.42]
[1753129669251,6.54345524,196.21,196.2,36.42]
[1753129669436,1e-08,196.21,196.2,36.42]
[1753129669637,6.54345524,196.21,196.2,36.42]
[1753129670733,1e-08,196.21,196.2,36.42]
[1753129670936,6.54345524,196.21,196.2,36.42]
[1753129672956,1e-08,196.21,196.2,36.42]
[1753129673340,1e-08,196.21,196.2,37.11]
[1753129674243,1e-08,196.21,196.2,42.20683995]
[1753129675043,1e-08,196.21,196.2,48.75029518]
[1753129675757,1e-08,196.21,196.2,42.20683995]
[1753129675953,1e-08,196.21,196.2,48.75029518]
[1753129676137,1e-08,196.21,196.2,42.20683995]
[1753129679757,1e-08,196.21,196.2,41.51683995]
[1753129679930,1e-08,196.21,196.2,42.20683995]
[1753129681033,1e-08,196.21,196.2,5.78683995]
[1753129681234,1e-08,196.21,196.17,0.69]
[1753129681435,1e-08,196.21,196.18,36.42]
[1753129682130,1e-08,196.21,196.19,0.69]
[1753129682335,1e-08,196.21,196.2,36.4]
[1753129683989,0.65000001,196.21,196.2,36.4]
[1753129684351,7.19345524,196.21,196.2,36.4]
[1753129684871,0.65000001,196.21,196.2,36.4]
[1753129685766,7.19345524,196.21,196.2,36.4]
[1753129685962,1e-08,196.21,196.2,36.4]
[1753129686164,1e-08,196.21,196.2,48.73029518]
[1753129686684,1e-08,196.21,196.2,42.18683995]
[1753129692589,1e-08,196.21,196.2,48.73029518]
[1753129693972,1e-08,196.21,196.2,42.18683995]
[1753129694370,1e-08,196.21,196.2,5.09683995]
[1753129694592,1e-08,196.21,196.2,36.38]
[1753129694797,1e-08,196.21,196.2,37.09]
[1753129695594,1e-08,196.21,196.2,41.47683995]
[1753129696877,1e-08,196.21,196.2,42.18683995]
[1753129697798,1e-08,196.21,196.2,41.47683995]
[1753129699602,1e-08,196.21,196.2,42.18683995]
[1753129700387,1e-08,196.21,196.2,41.47683995]
[1753129702004,1e-08,196.21,196.2,42.18683995]
[1753129702215,1e-08,196.21,196.2,48.73029518]
[1753129702586,1e-08,196.21,196.2,49.23997917]
[1753129702787,1e-08,196.21,196.2,66.02466314]
[1753129703112,1e-08,196.21,196.2,72.05066314]
[1753129703412,1e-08,196.21,196.2,80.20151837]
[1753129704923,1e-08,196.21,196.2,84.19358654]
[1753129706206,1e-08,196.21,196.2,86.69730017]
[1753129706713,0.06,196.29,196.24,49.3281392]
[1753129706894,0.06,196.29,196.28,32.54345523]
[1753129707098,0.06,196.29,196.28,68.90345523]
[1753129707409,0.06,196.29,196.28,69.61345523]
[1753129707581,0.06,196.29,196.28,86.3981392]
[1753129708710,0.06,196.29,196.28,60.3981392]
[1753129708908,0.06,196.29,196.28,60.90761545]
[1753129710483,0.06,196.29,196.28,0.50947625]
[1753129710689,0.06,196.29,196.28,42.90345523]
[1753129714133,0.06,196.29,196.28,36.36]
[1753129714417,0.77,196.29,196.28,36.36]
[1753129714610,0.77,196.29,196.28,62.36]
[1753129719217,0.06,196.29,196.28,62.36]
[1753129720718,0.77,196.29,196.28,62.36]
[1753129720917,0.06,196.29,196.28,62.34]
[1753129721228,0.06,196.29,196.28,69.55345523]
[1753129721528,0.06,196.29,196.28,74.64821781]
[1753129721902,0.06,196.29,196.28,68.10476258]
[1753129722236,0.06,196.29,196.28,65.43290178]
[1753129722724,0.06,196.29,196.28,58.88944655]
[1753129722910,0.06,196.29,196.28,65.43290178]
[1753129724812,0.77,196.29,196.28,26.0]
[1753129725121,0.77,196.29,196.28,36.32]
[1753129725719,0.06,196.29,196.28,36.32]
[1753129727499,0.06,196.29,196.28,47.95821781]
[1753129727834,0.06,196.29,196.28,65.41290178]
[1753129728038,0.06,196.29,196.28,36.32]
[1753129729532,0.77,196.29,196.28,36.32]
[1753129730128,0.77,196.29,196.28,62.32]
[1753129731120,0.06,196.29,196.28,62.99]
[1753129731320,0.06,196.29,196.28,42.86345523]
[1753129731560,0.06,196.29,196.28,36.32]
[1753129731724,0.06,196.29,196.28,42.86345523]
[1753129732244,0.06,196.29,196.28,48.62821781]
[1753129733327,0.06,196.29,196.28,47.95821781]
[1753129734026,0.77,196.29,196.24,16.78468397]
[1753129734226,0.71,196.28,196.24,23.3281392]
[1753129734454,0.71,196.28,196.27,26.0]
[1753129734626,0.71,196.28,196.21,13.28107428]
[1753129734627,0.71,196.27,196.21,0.03]
[1753129734956,6.54345523,196.22,196.21,0.03]
[1753129735124,0.71,196.22,196.21,36.35]
[1753129735534,0.71,196.24,196.21,36.35]
[1753129735741,0.06,196.29,196.21,36.35]
[1753129735742,0.77,196.29,196.23,6.54345523]
[1753129735957,0.77,196.29,196.26,26.0]
[1753129736128,0.77,196.29,196.27,36.32]
[1753129736735,0.71,196.28,196.27,36.32]
[1753129737230,0.06,196.29,196.27,36.32]
[1753129739443,0.06,196.29,196.27,41.41500346]
[1753129739648,0.06,196.29,196.27,36.32]
[1753129741134,0.77,196.29,196.27,36.32]
[1753129742754,0.06,196.29,196.27,36.32]
[1753129743556,0.06,196.29,196.28,1.17947625]
[1753129743871,0.77,196.29,196.27,36.32]
[1753129744043,0.77,196.29,196.28,26.0]
[1753129744362,0.77,196.29,196.28,62.3]
[1753129745267,0.77,196.29,196.28,36.3]
[1753129745560,7.31345523,196.29,196.28,36.3]
[1753129745962,0.77,196.29,196.28,36.3]
[1753129748868,5.86450303,196.29,196.28,36.3]
[1753129750663,12.40795826,196.29,196.28,36.3]
[1753129750867,12.40795826,196.29,196.18,12.31074308]
[1753129751069,6.54345523,196.23,196.18,0.67]
[1753129751359,6.54345523,196.23,196.22,36.3]
[1753129751563,7.19345523,196.23,196.22,36.3]
[1753129752762,12.28951597,196.23,196.22,36.3]
[1753129752962,5.09606074,196.23,196.22,36.3]
[1753129753166,6.54345523,196.27,196.22,36.97]
[1753129753359,6.54345523,196.25,196.22,36.3]
[1753129753545,7.19345523,196.24,196.22,36.3]
[1753129753750,0.65,196.23,196.22,36.3]
[1753129757570,0.65,196.26,196.22,36.3]
[1753129757748,5.09502216,196.27,196.22,36.33]
[1753129757959,6.54345523,196.26,196.22,37.0]
[1753129758367,7.19345523,196.26,196.22,37.0]
[1753129758682,6.54345523,196.24,196.22,36.33]
[1753129758857,0.65,196.24,196.22,36.33]
[1753129760088,7.19345523,196.24,196.22,36.33]
[1753129760681,0.65,196.23,196.22,36.33]
[1753129761379,12.28951597,196.23,196.22,0.03]
[1753129761606,12.28951597,196.23,196.22,36.33]
[1753129761959,12.28951597,196.23,196.22,0.03]
[1753129765390,22.79828397,196.22,196.2,1e-08]
[1753129765690,114.5,196.19,196.12,0.03]
[1753129765879,23.3281392,196.14,196.12,0.03]
[1753129766073,6.54345523,196.13,196.12,0.03]
[1753129766392,7.19345523,196.13,196.12,0.03]
[1753129767489,16.78468397,196.12,196.08,0.03]
[1753129767695,6.54345523,196.09,196.08,0.03]
[1753129768069,7.19345523,196.09,196.08,0.03]
[1753129768288,0.65,196.09,196.08,0.03]
[1753129768597,7.19345523,196.09,196.08,0.03]
[1753129769686,12.29315434,196.09,196.08,0.03]
[1753129776779,105.28468397,196.08,196.05,0.2]
[1753129776987,6.54345523,196.06,196.05,0.2]
[1753129777184,11.64393467,196.06,196.05,0.2]
[1753129777383,12.29393467,196.06,196.05,0.2]
[1753129777580,5.75047944,196.06,196.05,0.2]
[1753129777899,12.29393467,196.06,196.05,0.2]
[1753129780694,41.82981725,196.06,196.02,0.03]
[1753129780895,16.78468397,195.98,195.97,0.2]
[1753129781208,53.8481392,195.98,195.93,0.2]
[1753129781413,23.3281392,195.94,195.93,0.2]
[1753129781581,6.54345523,195.92,195.91,0.03]
[1753129782108,7.24345523,195.92,195.91,0.03]
[1753129783191,16.78468397,195.91,195.88,0.2]
[1753129783397,6.54345523,195.89,195.88,0.2]
[1753129784199,26.59590378,195.89,195.88,0.2]
[1753129784696,16.78468397,195.88,195.79,36.32]
[1753129785012,6.54345523,195.8,195.79,36.32]
[1753129785890,6.54345523,195.8,195.76,0.72]
[1753129785891,11.65082475,195.8,195.76,0.72]
[1753129786088,6.54345523,195.78,195.77,36.32]
[1753129786300,6.54345523,195.79,195.77,37.04]
[1753129786814,6.54345523,195.82,195.78,0.72]
[1753129786991,6.54345523,195.81,195.79,0.72]
[1753129787190,6.54345523,195.8,195.77,36.32]
[1753129787489,6.54345523,195.79,195.77,36.32]
[1753129788298,6.54345523,195.82,195.78,0.72]
[1753129788597,6.54345523,195.82,195.77,41.42785432]
[1753129788795,6.54345523,195.81,195.79,0.72]
[1753129789389,5.80597937,195.85,195.79,0.72]
[1753129789617,6.54345523,195.81,195.79,0.72]
[1753129789922,6.54345523,195.81,195.77,41.42800012]
[1753129790103,2.56776458,195.89,195.77,41.42800012]
[1753129790104,6.54345523,195.87,195.8,33.26345523]
[1753129790305,0.7,195.92,195.82,6.54345523]
[1753129790306,6.54345523,195.88,195.82,6.54345523]
[1753129790493,6.54345523,195.84,195.83,36.34]
[1753129791203,6.54345523,195.86,195.83,37.06]
[1753129791411,6.54345523,195.87,195.84,0.72]
[1753129791711,6.54345523,195.87,195.84,5.826178]
[1753129792014,6.54345523,195.87,195.85,0.72]
[1753129792209,6.54345523,195.87,195.83,37.06]
[1753129792390,0.7,195.91,195.84,0.72]
[1753129792391,6.54345523,195.88,195.84,0.72]
[1753129792586,6.54345523,195.88,195.83,41.44624602]
[1753129792587,0.7,195.94,195.85,0.72]
[1753129792787,6.54345523,195.89,195.85,0.72]
[1753129792986,6.54345523,195.89,195.86,0.72]
[1753129793204,6.54345523,195.89,195.87,0.72]
[1753129793396,6.54345523,195.89,195.88,36.34]
[1753129795418,7.24345523,195.89,195.85,36.34]
[1753129795607,6.54345523,195.86,195.85,36.34]
[1753129796395,6.54345523,195.86,195.83,26.0]
[1753129796698,6.54345523,195.84,195.75,36.68]
[1753129796893,6.54345523,195.81,195.77,36.34]
[1753129797089,6.54345523,195.81,195.78,0.72]
[1753129797494,6.54345523,195.81,195.79,0.72]
[1753129798017,6.54345523,195.8,195.76,0.72]
[1753129798199,6.54345523,195.8,195.77,36.34]
[1753129798402,6.54345523,195.8,195.77,37.06]
[1753129799410,6.54345523,195.81,195.77,37.06]
[1753129799605,6.54345523,195.81,195.78,0.72]
[1753129800332,0.7,195.91,195.81,26.0]
[1753129800614,0.7,195.91,195.8,6.54345523]
[1753129800615,0.7,195.93,195.85,32.54345523]
[1753129800808,6.54345523,195.92,195.86,69.60345523]
[1753129800990,6.54345523,195.91,195.86,63.06]
[1753129801191,43.80975003,195.95,195.82,1.5715]
[1753129801395,6.54345523,195.84,195.83,36.34]
[1753129802415,11.6498733,195.84,195.77,1.6477]
[1753129802616,6.54345523,195.78,195.74,5.10876056]
[1753129802929,6.54345523,195.79,195.76,36.34]
[1753129803732,0.7,195.81,195.76,36.34]
[1753129803914,17.87194094,195.84,195.72,5.8292729]